Cogmind - Beta 16.1 @@@ ROGUE MODE // 2026.02.18 @ 21:45:35 Player: Bereft Result: Destroyed by Y-45 Defender with Beam Rifle Performance ------------- Evolutions (1) 500 Regions Visited (4) 800 Robots Destroyed (14) 70 Value Destroyed (408) 408 Prototype IDs (2) 40 Alien Tech Used (0) 0 Bonus (0) 0 TOTAL SCORE: 1818 Bonus ------- None Cogmind --------- Core Integrity 0/400 Matter 169/300 Energy 250/250 System Corruption 3% Temperature Cool (9) Movement Flying (110) Ox1 Location -9/Storage Parts ------- > --- POWER (1) -------- Ion Engine > --- PROPULSION (4) --- Improved Flight Unit > --- UTILITY (2) ------ Signal Interpreter Terrain Scan Processor > --- WEAPON (2) ------- Light Assault Rifle > --- INVENTORY (5) ---- Seismic Detector Peak State ------------ > --- POWER ------------ Light Ion Engine > --- PROPULSION ------- Flight Unit Flight Unit > --- UTILITY ---------- Terrain Scan Processor > --- WEAPON ----------- Improved Medium Laser Grenade Launcher > --- INVENTORY -------- Ion Engine Light Ion Engine Light Assault Rifle Light Assault Rifle [Rating: 9] Favorites ----------- Power Light Ion Engine Engine Light Ion Engine Propulsion Flight Unit Leg Aluminum Leg Flight Unit Flight Unit Utility Terrain Scan Processor Device Terrain Scanner Storage Small Storage Unit Processor Terrain Scan Processor Weapon Medium Laser Energy Gun Medium Laser Ballistic Gun Assault Rifle Launcher Grenade Launcher Build | -11 -10 -10 -9 -9 ------- Run | Yrd Mat Min Mat Sto Slots Evolved 2 | . . . 2 . Power . | . . . . . Propulsion 2 | . . . 2 . Utility . | . . . . . Weapon . | . . . . . Parts Attached 21 | 6 2 6 3 4 Power 4 | 1 . 2 . 1 Engine 4 | 1 . 2 . 1 Core . | . . . . . Reactor . | . . . . . Propulsion 6 | 2 1 2 1 . Treads . | . . . . . Leg 3 | 2 1 . . . Wheel . | . . . . . Hover . | . . . . . Flight 3 | . . 2 1 . Utility 4 | 1 1 1 . 1 Device 1 | . 1 . . . Storage 1 | 1 . . . . Processor 2 | . . 1 . 1 Hackware . | . . . . . Protection . | . . . . . Artifact . | . . . . . Weapon 7 | 2 . 1 2 2 Energy Gun 3 | 1 . 1 1 . Energy Cannon . | . . . . . Ballistic Gun 3 | 1 . . . 2 Ballistic Cannon . | . . . . . Launcher 1 | . . . 1 . Special Weapon . | . . . . . Impact Weapon . | . . . . . Slashing Weapon . | . . . . . Piercing Weapon . | . . . . . Special Melee Weapon . | . . . . . Unidentified Prototypes 2 | . . . 2 . Corrupted Parts 1 | . . 1 . . System Corruption 2 | . . 2 . . Parts Lost 9 | . 1 2 3 3 Power 3 | . . 1 1 1 Propulsion 3 | . 1 . 1 1 Utility 1 | . . . 1 . Weapon 2 | . . 1 . 1 Highest Loss Streak 2 | . 1 2 2 2 To Critical Strikes . | . . . . . Average Backups 3 | 1 2 3 4 3 Power 1 | . 1 1 2 . Propulsion . | . . . . . Utility . | . . . . . Weapon 1 | . 1 1 2 1 Tool/Special . | . . . . . Unused Backups 1 | . . . . 1 Power . | . . . . . Propulsion . | . . . . . Utility 1 | . . . . 1 Weapon . | . . . . . Tool/Special . | . . . . . Average Slot Usage (%) 64 | . 83 84 53 44 Engine 10 | . 14 12 10 6 Leg 8 | . 25 13 . . Flight 13 | . . 14 22 15 Device 5 | . . 14 8 . Storage 4 | . 14 7 . . Processor 9 | . . 6 11 20 Energy Gun 5 | . 14 13 . . Ballistic Gun 4 | . 14 1 . 2 Peak Build Rating 9 | 6 7 7 9 9 Average Rating 5 | 2 5 6 5 7 On Entrance 5 | . 6 7 6 6 Avg Prop Armor Cover (%) 8 | . . 8 8 . Naked Turns . | . . . . . Heaviest Build 15 | 14 15 15 9 3 Greatest Support 20 | 20 20 20 9 9 Greatest Overweight (x) 1 | . 1 . 1 . Average Overweight (x) . | . . . . . Largest Inventory Capacity 8 | 8 8 8 5 5 Average Capacity 6 | 6 8 6 5 5 Most Carried 7 | 5 5 7 5 4 Average Carried 3 | 1 2 3 4 3 Final Capacity 8 | 8 8 5 5 5 Final Carried 5 | 2 3 5 4 1 Class Distribution -------------------- 62% | Mutant 37% | Scavenger-Mutant Dominant Class ---------------- Mutant | -10/Materials Scavenger-Mutant | -10/Mines Scavenger-Mutant | -9/Materials Mutant | -9/Storage Resources | -11 -10 -10 -9 -9 ----------- Run | Yrd Mat Min Mat Sto Matter Collected 393 | 195 93 98 7 . Remotely . | . . . . . Salvage Created 368 | . 93 29 122 124 Parts 23 | . 4 3 8 8 Haulers Intercepted . | . . . . . Recyclers Shooed . | . . . . . Parts Field Recycled . | . . . . . Retrieved Matter . | . . . . . Parts Self-Destructed . | . . . . . Prevented . | . . . . . Parts Restored . | . . . . . Kills | -11 -10 -10 -9 -9 ------- Run | Yrd Mat Min Mat Sto Combat Hostiles Destroyed 12 | . 2 2 5 3 Guns 7 | . 2 2 . 3 AOE 5 | . . . 5 . Classes Destroyed 4 | . 2 1 . 1 Builder 2 | . 1 . 1 . Swarmer 2 | . . 2 . . Grunt 9 | . 2 . 5 2 Brawler 1 | . . . . 1 Best Kill Streak 6 | . 2 2 6 3 Combat Bots Only 5 | . 1 2 5 3 Max Kills in Single Turn 3 | . 1 1 3 1 Gunslinging . | . . . . . Exploded 2 | . . . 2 . Melee . | . . . . . Uniques/NPCs Destroyed . | . . . . . Combat | -11 -10 -10 -9 -9 -------- Run | Yrd Mat Min Mat Sto Hostile Shots Fired 148 | . 30 29 33 56 Missed 53 | . 9 8 14 22 Hits 95 | . 21 21 19 34 Melee 1 | . . . . 1 Projectile 94 | . 21 21 19 33 AOE 1 | . 1 . . . Critical Strikes 1 | . . . 1 . Damage Taken 1235 | . 407 163 263 402 Core 521 | . 92 29 146 254 Absorbed by Shields . | . . . . . Core Remaining (%) 75 | 100 . 51 . . Volleys Fired 45 | . 19 10 7 9 Largest 2 | . 2 2 1 2 Hottest 90 | . 70 90 30 40 Shots Fired 74 | . 38 17 7 12 Gun 67 | . 38 17 . 12 Cannon . | . . . . . Launcher 7 | . . . 7 . Special . | . . . . . Kinetic 32 | . 19 1 . 12 Thermal 29 | . 19 10 . . Explosive 7 | . . . 7 . Electromagnetic 6 | . . 6 . . Robot Hit Streak 11 | . 10 11 9 11 Robot Miss Streak 6 | . 6 2 . 1 Penetration Max . | . . . . . Secondary Targets 2 | . 1 1 . . Max Gunslinging Chain 1 | . 1 1 . . Shots Hit Robots 50 | . 23 10 6 11 Core Hits 26 | . 6 2 11 7 Critical Kills . | . . . . . Critical Parts Destroyed . | . . . . . Critical Strikes 1 | . 1 . . . Burn 1 | . 1 . . . Melee Attacks . | . . . . . Impact . | . . . . . Slashing . | . . . . . Piercing . | . . . . . Sneak Attacks . | . . . . . Combat Hostiles . | . . . . . Follow-up Attacks . | . . . . . Damage Inflicted 976 | . 314 121 452 89 Guns 520 | . 314 117 . 89 Cannons . | . . . . . Explosions 452 | . . . 452 . Melee . | . . . . . Ramming 4 | . . 4 . . Kinetic 267 | . 178 . . 89 Thermal 210 | . 136 74 . . Explosive 452 | . . . 452 . Electromagnetic 43 | . . 43 . . Impact . | . . . . . Slashing . | . . . . . Piercing . | . . . . . Highest Corruption 3 | . . 2 . 3 Average Corruption 2 | . . 2 . 3 Corruption Purged . | . . . . . Corruption Blocked . | . . . . . Effects 3 | . . 2 . 1 Matter Fused 2 | . . 1 . 1 Data Loss (minor) 1 | . . 1 . . Overload Shots . | . . . . . Overflow Damage . | . . . . . Projectiles . | . . . . . Explosions . | . . . . . Melee . | . . . . . Knockbacks . | . . . . . Impact . | . . . . . Kinetic . | . . . . . Secondary . | . . . . . Self-Inflicted Damage 3 | . . . 3 . Shots 1 | . . . 1 . Rammed . | . . . . . Targets Rammed 1 | . . 1 . . Kicked 1 | . . 1 . . Crushed . | . . . . . Highest Temperature 282 | . 282 60 9 6 Average Temperature 104 | . 141 29 6 3 Received Heat Transfer 489 | . 174 . 117 198 Siege Activations . | . . . . . Martial Activations . | . . . . . Shielding Activations . | . . . . . Robots Disrupted . | . . . . . Combat Hostiles . | . . . . . Robots Corrupted . | . . . . . Combat Hostiles . | . . . . . Parts Fried . | . . . . . Impact Corruptions . | . . . . . Robots Melted . | . . . . . Combat Hostiles . | . . . . . Parts Melted 1 | . 1 . . . Heat Transferred 703 | . 481 222 . . Parts Sabotaged . | . . . . . Parts Stolen . | . . . . . Parts Stripped . | . . . . . Power Chain Reactions . | . . . . . Alert | -11 -10 -10 -9 -9 ------- Run | Yrd Mat Min Mat Sto Maximum Alert Level . | . . . . . Low Security (%) 100 | 100 100 100 100 100 Level 1 . | . . . . . Level 2 . | . . . . . Level 3 . | . . . . . Level 4 . | . . . . . Level 5 . | . . . . . High Security . | . . . . . Max Security . | . . . . . Peak Influence 163 | . 30 40 163 105 Initial 42 | . . 3 . 42 Average 21 | . 5 13 32 38 Influence Increases 464 | . 71 65 177 151 Destroy 0b10 Robot/C 240 | . 40 40 100 60 Destroy 0b10 Robot/NC 10 | . 5 . 5 . Destroy Leader 50 | . 10 10 20 10 Successful Hack 26 | . 16 . 4 6 Disable Machine 15 | . . . 15 . Destroy Structure 18 | . . . 18 . Lose Combat Pursuer 105 | . . 15 15 75 Influence Decreases 369 | . 61 75 74 159 Entered New Map 68 | . . 7 . 61 Time Decay 238 | . 51 65 44 78 Lost Part 63 | . 10 3 30 20 Squads Dispatched 4 | . 1 . 1 2 Investigation 1 | . . . . 1 Extermination . | . . . . . Reinforcement 3 | . 1 . 1 1 Assault . | . . . . . Garrison . | . . . . . Intercept . | . . . . . Searches Triggered . | . . . . . Construction Impeded . | . . . . . Haulers Reinforced . | . . . . . Active Scanning Responses . | . . . . . Cargo Convoy Interrupts . | . . . . . Stealth | -11 -10 -10 -9 -9 --------- Run | Yrd Mat Min Mat Sto Distress Signals 2 | . . . . 2 Communications Jammed . | . . . . . Distress Signals . | . . . . . Times Spotted 32 | . 4 6 11 11 Peak Tracking Total 8 | . 2 3 5 8 Tactical Retreats 4 | . . 1 1 2 Traps | -11 -10 -10 -9 -9 ------- Run | Yrd Mat Min Mat Sto Traps Triggered . | . . . . . Indirectly . | . . . . . Trap Hack Attempts . | . . . . . Triggered . | . . . . . Disarmed . | . . . . . Reprogrammed . | . . . . . Reused . | . . . . . Traps Extracted . | . . . . . Installed . | . . . . . Triggered . | . . . . . Machines | -11 -10 -10 -9 -9 ---------- Run | Yrd Mat Min Mat Sto Machines Disabled 1 | . . . 1 . Max in Single Turn 1 | . . . 1 . Machines Repaired . | . . . . . Machines Dismantled . | . . . . . Machines Sabotaged . | . . . . . Overloaded Fab Kills . | . . . . . Hacking | -11 -10 -10 -9 -9 --------- Run | Yrd Mat Min Mat Sto Machines Accessed 6 | . 2 . 1 3 Terminals 5 | . 2 . 1 2 Fabricators . | . . . . . Repair Stations . | . . . . . Recycling Units 1 | . . . . 1 Scanalyzers . | . . . . . Garrison Access . | . . . . . Total Hacks 23 | . 10 . 4 9 Successful 12 | . 6 . 2 4 Failed 11 | . 4 . 2 5 Catastrophic . | . . . . . Database Lockouts . | . . . . . Manual . | . . . . . Terminals 20 | . 10 . 4 6 Fabricators . | . . . . . Repair Stations . | . . . . . Recycling Units 3 | . . . . 3 Scanalyzers . | . . . . . Garrison Access . | . . . . . Terminal Hacks 9 | . 6 . 2 1 Robot Analysis 1 | . . . . 1 Branch Access Points 1 | . 1 . . . Emergency Access Points 2 | . 2 . . . Alert Level 1 | . . . 1 . Dispatch Records 2 | . 1 . 1 . Transport Status 1 | . 1 . . . Zone Layout 1 | . 1 . . . Fabricator Hacks . | . . . . . Repair Station Hacks . | . . . . . Recycling Unit Hacks 3 | . . . . 3 Report Inventory 1 | . . . . 1 Retrieve Matter 1 | . . . . 1 Retrieve Components 1 | . . . . 1 Scanalyzer . | . . . . . Garrison Access Hacks . | . . . . . Unauthorized Hacks . | . . . . . Terminals . | . . . . . Fabricators . | . . . . . Repair Stations . | . . . . . Recycling Units . | . . . . . Scanalyzers . | . . . . . Garrison Access . | . . . . . Data Cores Recovered . | . . . . . Used . | . . . . . Hacking Detections 4 | . 2 . 1 1 Full Trace Events 2 | . 1 . . 1 Feedback Events . | . . . . . Feedback Blocked . | . . . . . Robot Schematics Acquired . | . . . . . Robots Built . | . . . . . Authchips . | . . . . . Time . | . . . . . Total Robot Build Rating . | . . . . . Part Schematics Acquired . | . . . . . Parts Built . | . . . . . Authchips . | . . . . . Time . | . . . . . Total Part Build Rating . | . . . . . Part Studies Acquired . | . . . . . Parts Repaired . | . . . . . Time . | . . . . . Parts Recycled . | . . . . . Recycled Matter . | . . . . . Retrieved Matter . | . . . . . Retrieved Components . | . . . . . Parts Scanalyzed . | . . . . . Part Schematics Acquired . | . . . . . Parts Damaged . | . . . . . Bothacking | -11 -10 -10 -9 -9 ------------ Run | Yrd Mat Min Mat Sto Used RIF Installer . | . . . . . Robots Hacked . | . . . . . Non-combat . | . . . . . Combat . | . . . . . Robot Hacks Applied . | . . . . . Relay Couplers Released . | . . . . . Fabnet Peak Effective % . | . . . . . Robots Rewired . | . . . . . Allies Hacked . | . . . . . Hacks Repelled . | . . . . . Allies | -11 -10 -10 -9 -9 -------- Run | Yrd Mat Min Mat Sto Total Allies . | . . . . . Largest Group . | . . . . . Highest-Rated Group . | . . . . . Highest-Rated Ally . | . . . . . Total Orders . | . . . . . Ally Attacks . | . . . . . Total Damage . | . . . . . Kills . | . . . . . Allies Corrupted . | . . . . . Allies Melted . | . . . . . Intel | -11 -10 -10 -9 -9 ------- Run | Yrd Mat Min Mat Sto Active Infowar (turns) 419 | . 15 141 263 . Terrain 419 | . 15 141 263 . Robot Analysis Total 1 | . . . . 1 Derelict Logs Recovered 1 | . . 1 . . Drone Launches . | . . . . . Drone Recoveries . | . . . . . Exploration | -11 -10 -10 -9 -9 ------------- Run | Yrd Mat Min Mat Sto Turns Passed 1038 | 70 266 141 345 216 Spaces Moved 747 | 68 75 91 255 258 Core 38 | 38 . . . . Treads . | . . . . . Legs 122 | 30 75 17 . . Wheels . | . . . . . Hover . | . . . . . Flight 587 | . . 74 255 258 Fastest Speed 37 | 50 120 40 37 37 Average Speed 53 | 80 128 54 37 39 Slowest Speed 190 | 120 190 120 117 40 Overloaded Moves . | . . . . . Propulsion Burnouts . | . . . . . Robots Hopped 13 | . . . . 13 Potential Cave-ins . | . . . . . Cave-ins Triggered . | . . . . . Exploration Rate (%) 22 | 4 14 22 22 51 Regions Visited 4 Branch Regions 2 Pre-discovered Areas . | . . . . . Known Exits Taken 1 | . 1 . . . Unknown Exits Taken 3 | 1 . 1 1 . Scrap Searched 1 | . . 1 . . Spaces Dug . | . . . . . Terrain Destroyed 17 | . . . 17 . Melee . | . . . . . Projectile . | . . . . . AOE 17 | . . . 17 . Terrain Rammed . | . . . . . Walls Destroyed . | . . . . . Machines Disabled . | . . . . . Actions | -11 -10 -10 -9 -9 --------- Run | Yrd Mat Min Mat Sto Total 1300 | 83 206 164 497 350 Wait 473 | 2 108 45 229 89 Move 721 | 67 74 90 254 236 Hop 9 | . . . . 9 Pick Up 22 | 8 3 7 2 2 Fast Attach . | . . . . . Attach 18 | 6 2 2 3 5 Detach . | . . . . . Swap 4 | . . 4 . . Drop 7 | . . 5 2 . Fire 45 | . 19 10 7 9 Melee . | . . . . . Ram . | . . . . . Kick 1 | . . 1 . . Crush . | . . . . . Escape Stasis . | . . . . . Rewire . | . . . . . Trap . | . . . . . Miscellaneous . | . . . . . Route ------- -11/Scrapyard -10/Materials (discovered 2 exits: *Min x2) -10/Mines -9/Materials -9/Storage (discovered 1 exit: Rec) History --------- Turn | Location | Event 3 | -11/Scrapyard | Discovered new exit (range 15) 71 | -11/Scrapyard | Entered Materials 88 | -10/Materials | Identified exit to Mines 300 | -10/Materials | Build established: Mutant 337 | -10/Materials | Entered Mines 340 | -10/Mines | Assembled infested the area 412 | -10/Mines | Met 8R-AWN 453 | -10/Mines | Discovered new exit (range 15) 468 | -10/Mines | Joined a pair of Derelicts in attacking an 0b10 outpost 478 | -10/Mines | Entered Materials 478 | -9/Materials | Evolved 2 slots: Propulsion x2 691 | -9/Materials | Build established: Scavenger-Mutant 793 | -9/Materials | Discovered new exit (range 3) 823 | -9/Materials | Entered Storage 824 | -9/Storage | Identified exit to Recycling 901 | -9/Storage | Core integrity fell below 50% 971 | -9/Storage | Core integrity fell below 20% 1039 | -9/Storage | Destroyed by Y-45 Defender with Beam Rifle Last Messages --------------- Connecting with Terminal... ALERT: Suspicious activity at Terminal S010. Dispatching Investigation squad. Connecting with Door Terminal... Acquired Signal Interpreter. Acquired Seismic Detector. Flight Unit destroyed. Lgt. Ion Engine destroyed. W-16 Scout sends out distress signal. T-07 Excavator is excavating. W-16 Scout sends out distress signal. ALERT: Hostiles spotted, dispatching reinforcements to Terminal S007. Connecting with Door Terminal... G-34 Mercenary destroyed. Lgt. Assault Rifle destroyed. System corrupted by crushing effect (+3). B-36 Bruiser destroyed. G-34 Mercenary destroyed. System corrupted: Matter fused (-6). Map ----- +----------------------------------------------------+ | + #???????????????????????????? | | # #???????????????????????????? | | #### #???????????????????????????? | | ???# #???????????????????????????? | | ???# ##??????????????????????????? | | ???# T#??????????????????????????? | | ???# ##??????????????????????????? | | ???# #???????????????????????????? | | ???# #???????????????????????????? | | ???# #???????????????????????????? | | ???# #???????????????????????????? | | ???# #???????????????????????????? | | ???# #???????????????????????????? | | ???# #####???????????????????????? | | ???# #??????????????####?????? | | ??# +??????????###?]]]#?????? | | # #?????????##T# ]]]#?????? | | "" + #?????????# " #?????? | | "" # #####+##### [[#?????? | | "??# # " [[#?????? | | # + #!![[#?????? | | + #### ####?####?????? | | #####+###+#??# #?###?????????? | | ???? ? #??#a ###T#"????????? | | ???? ? #??# %Y=*/!"?>??????? | | ??? #??# ####!^^%=%@"????????? | | ???"" """ #??#/#??###+####"????????? | | ??""" """ #?? ????????????????????? | | ??""" """ ?? ????????????????????? | | ? ?# = ????????????????????? | | ???? ? ?# ????????????????????? | | ????###?##?# ????????????????????? | | ????????????###????????????????????? | | | | | | | | | | | | | | | | | | | | | | | | | | | | | | | | | | | +----------------------------------------------------+ Best States ------------- Heat Dissipation 28 Energy Generation 10 Energy Capacity 250 Matter Stores 300 Matter Capacity 300 Sight Range 16 Terrain Scan Range 14 Terrain Scan Density 85 Evasion (%) 62 Item Schematics ----------------- None Robot Schematics ------------------ None Fabricated ------------ Nothing Repaired ---------- Nothing Studied --------- None Alien Tech Used ----------------- None Achievements -------------- None Challenges ------------ None Game ------ Seed TowerPersonalReconstructor Manual? 0 Play Time 00:14:57 Cumulative 12.8 hours Start 2026.02.18 @ 21:33:01 End 2026.02.18 @ 21:45:35 Sessions 1 Manual Loads 0 Difficulty Rogue Special Mode None Game No. 22 Rogue 22 Adventurer 0 Explorer 0 Win Type - Total 0 Types 0/0/0/0/0/0/0/0/0/0 Lore% 9 Gallery% 17 Achievement% 14 Wizard Run 0 Options --------- Layout 1 ASCII 0 Keyboard 0 Movement Numpad Keybinds 0 Fullscreen 1 Font 32/SmallcapsGlow Map View 50x35 Zoom Use 0% Tactical HUD 0 Map Filters NONE Filters NONE Steam 1 RUN: a140466a-ed03-4416-9695-d0dd4f34c328